bitfinex/quotes_BTCUSD_20250403
["timestamp","ask_amount","ask_price","bid_price","bid_amount"]
[1743653673207,0.25241549,83472.0,83471.0,0.1069522]
[1743653674769,0.251592,83468.0,83467.0,0.00897711]
[1743653674996,0.25243798,83468.0,83467.0,0.00897711]
[1743653675202,0.25243798,83468.0,83466.0,0.000337]
[1743653676592,0.01198,83467.0,83466.0,0.000337]
[1743653676817,0.01282885,83467.0,83466.0,0.000337]
[1743653677899,0.01282885,83467.0,83466.0,0.00038306]
[1743653680779,0.0290729,83467.0,83466.0,0.00038306]
[1743653681003,0.0170929,83467.0,83466.0,0.00038306]
[1743653681570,0.239607,83470.0,83466.0,0.00038306]
[1743653681777,0.00084885,83467.0,83466.0,0.00038306]
[1743653682036,0.230612,83468.0,83466.0,0.00038306]
[1743653682596,0.00084598,83467.0,83466.0,0.00038306]
[1743653684884,0.0038411,83467.0,83466.0,0.00038306]
[1743653685181,0.12958158,83467.0,83466.0,0.00038306]
[1743653685381,0.47257704,83467.0,83466.0,0.00038306]
[1743653685591,0.56458158,83467.0,83466.0,0.00038306]
[1743653685787,0.591632,83455.0,83454.0,3.7e-07]
[1743653685987,0.9379076,83455.0,83454.0,6e-07]
[1743653686219,0.93857695,83455.0,83454.0,6e-07]
[1743653686367,0.94759345,83455.0,83454.0,6e-07]
[1743653686584,1.06433746,83455.0,83454.0,6e-07]
[1743653687000,1.09603708,83455.0,83454.0,6e-07]
[1743653687204,1.12745153,83455.0,83454.0,6e-07]
[1743653687854,1.12745153,83455.0,83454.0,8e-07]
[1743653691075,1.06433746,83455.0,83454.0,8e-07]
[1743653692506,0.351983,83447.0,83446.0,9e-07]
[1743653692715,0.5183386,83447.0,83446.0,9e-07]
[1743653692892,0.51892313,83447.0,83446.0,9e-07]
[1743653695031,1.59740313,83447.0,83446.0,9e-07]
[1743653695651,1.61360412,83447.0,83446.0,9e-07]
[1743653695845,1.73034813,83447.0,83446.0,9e-07]
[1743653697333,1.77844813,83447.0,83446.0,9e-07]
[1743653699566,1.79626412,83447.0,83446.0,9e-07]
[1743653700734,1.61360412,83447.0,83446.0,9e-07]
[1743653700949,1.56400412,83447.0,83446.0,9e-07]
[1743653701229,1.69860412,83447.0,83446.0,9e-07]
[1743653707619,1.21202112,83447.0,83446.0,9e-07]
[1743653707822,1.46367712,83447.0,83446.0,9e-07]
[1743653712188,1.46384582,83447.0,83446.0,9e-07]
[1743653716061,1.33510722,83447.0,83446.0,9e-07]
[1743653716270,1.09543422,83447.0,83446.0,0.0467009]
[1743653717117,1.09543422,83447.0,83446.0,0.05419084]
[1743653717682,1.09543422,83447.0,83446.0,0.05793579]
[1743653718058,1.10741722,83447.0,83446.0,0.05793579]
[1743653718275,1.22417282,83447.0,83446.0,0.01123579]
[1743653718460,1.56417282,83447.0,83446.0,0.01123579]
[1743653719091,1.56417282,83447.0,83446.0,0.00749084]
[1743653719596,1.56417282,83447.0,83446.0,9e-07]
[1743653723848,0.48569282,83447.0,83446.0,9e-07]
[1743653728974,0.01695422,83447.0,83446.0,0.0119839]
[1743653729215,0.01695422,83447.0,83446.0,9e-07]
[1743653729395,0.0001687,83447.0,83446.0,9e-07]
[1743653729586,0.01668751,83447.0,83446.0,9e-07]
[1743653729786,0.0001687,83447.0,83446.0,0.00749086]
[1743653730033,0.01668751,83447.0,83446.0,0.01123599]
[1743653730226,0.0001687,83447.0,83446.0,0.01123599]
[1743653730430,0.01670274,83447.0,83446.0,0.02321899]
[1743653730631,0.0001687,83447.0,83446.0,0.02321899]
[1743653731091,0.01670274,83447.0,83446.0,0.02321899]
[1743653733211,0.13345834,83447.0,83446.0,0.01123599]
[1743653733436,0.14843741,83447.0,83446.0,0.01123599]
[1743653734222,0.14843741,83447.0,83446.0,0.00749086]
[1743653740925,0.14544134,83447.0,83446.0,0.00749086]
[1743653746890,0.13345834,83447.0,83446.0,0.00749086]
[1743653747104,0.01670274,83447.0,83446.0,0.00749086]
[1743653747723,0.01670274,83447.0,83446.0,0.01123595]
[1743653754894,0.02868574,83447.0,83446.0,0.01123595]
[1743653760721,0.14843728,83447.0,83446.0,0.01123595]
[1743653760927,0.14544134,83447.0,83446.0,0.01123595]
[1743653761525,0.14544134,83447.0,83446.0,0.02322025]
[1743653762548,0.53523749,83447.0,83446.0,0.02322025]
[1743653762758,0.53224134,83447.0,83446.0,0.02322025]
[1743653763380,0.53224134,83447.0,83446.0,0.00374599]
[1743653764306,0.53224134,83447.0,83446.0,9e-07]
[1743653767529,0.54116019,83447.0,83446.0,9e-07]
[1743653779496,0.7032042,83447.0,83446.0,9e-07]
[1743653780864,0.7079992,83447.0,83446.0,9e-07]
[1743653781547,0.7079992,83447.0,83434.0,0.0001684]
[1743653781548,0.351985,83435.0,83434.0,8e-07]
[1743653781763,0.351985,83435.0,83431.0,8e-07]
[1743653781764,0.591701,83432.0,83431.0,8e-07]
[1743653781966,0.7537566,83432.0,83431.0,8e-07]
[1743653783142,0.76577914,83432.0,83431.0,8e-07]
[1743653785387,0.76630327,83432.0,83431.0,8e-07]
[1743653785589,0.78214589,83432.0,83431.0,8e-07]
[1743653786020,0.8988899,83432.0,83431.0,8e-07]
[1743653788935,1.0334499,83432.0,83431.0,8e-07]
[1743653791705,2.1122899,83432.0,83431.0,8e-07]
[1743653793600,2.1122899,83432.0,83431.0,0.0001693]
[1743653802378,0.59171,83429.0,83428.0,7e-07]
[1743653802575,0.72461827,83429.0,83428.0,7e-07]
[1743653802780,0.77321827,83429.0,83428.0,7e-07]
[1743653806579,1.29943234,83429.0,83428.0,7e-07]
[1743653806790,0.591771,83409.0,83408.0,0.0001684]
[1743653806988,0.84366107,83409.0,83408.0,0.00030665]
[1743653812471,0.85286901,83409.0,83408.0,0.00030665]
[1743653815624,0.86850249,83409.0,83408.0,0.00030665]
[1743653823550,0.72473455,83409.0,83408.0,0.00030665]
[1743653823773,0.85933455,83409.0,83408.0,0.00030665]
[1743653824342,0.86852172,83409.0,83408.0,0.00030665]
[1743653826335,0.85933455,83409.0,83408.0,0.00030665]
[1743653827120,0.86851363,83409.0,83408.0,0.00030665]
[1743653829259,0.011989,83407.0,83406.0,5e-08]
[1743653829454,0.51774267,83407.0,83406.0,5e-08]
[1743653829682,0.53073611,83407.0,83406.0,5e-08]
[1743653832537,0.94533611,83407.0,83406.0,5e-08]
[1743653832945,0.591792,83402.0,83401.0,2.5e-07]
[1743653833177,0.8032476,83402.0,83401.0,2.5e-07]
[1743653833493,0.85151617,83402.0,83401.0,2.5e-07]
[1743653834555,0.819252,83402.0,83401.0,2.5e-07]
[1743653835239,0.772552,83402.0,83401.0,2.5e-07]
[1743653836195,1.187152,83402.0,83401.0,2.5e-07]
[1743653841624,1.187152,83402.0,83401.0,0.00016885]
[1743653841827,1.1874892,83402.0,83401.0,0.00016885]
[1743653842449,1.30423321,83402.0,83401.0,0.00016885]
[1743653844355,1.1874892,83402.0,83401.0,0.00016885]
[1743653849090,1.3220892,83402.0,83401.0,0.00016885]
[1743653849257,2.4014492,83402.0,83401.0,0.00016885]
[1743653849885,2.4014492,83402.0,83401.0,8.5e-07]
[1743653850388,2.46456656,83402.0,83401.0,8.5e-07]
[1743653850609,2.62891057,83402.0,83401.0,8.5e-07]
[1743653850994,2.65891057,83402.0,83401.0,8.5e-07]
[1743653852104,0.591882,83372.0,83371.0,0.004]
[1743653852306,0.8432376,83372.0,83371.0,0.00446115]
[1743653852501,0.85910956,83372.0,83371.0,0.00446115]
[1743653854411,0.86833025,83372.0,83371.0,0.00446115]
[1743653855789,0.88045268,83372.0,83371.0,0.00446115]
[1743653862374,0.99719669,83372.0,83371.0,0.00446115]
[1743653863867,1.29505268,83372.0,83371.0,0.00446115]
[1743653866078,1.29505268,83372.0,83371.0,0.00462975]
[1743653874075,0.351994,83371.0,83370.0,9.5e-07]
[1743653874275,0.4687496,83371.0,83370.0,6.175e-05]
[1743653874484,0.484312,83371.0,83370.0,6.175e-05]
[1743653875428,0.60105601,83371.0,83370.0,7.5e-07]
[1743653878202,0.60105601,83371.0,83370.0,3.5e-07]
[1743653878649,1.01565601,83371.0,83370.0,3.5e-07]
[1743653878850,0.898912,83371.0,83370.0,3.5e-07]
[1743653881812,1.033512,83371.0,83370.0,3.5e-07]
[1743653884672,0.898912,83371.0,83370.0,3.5e-07]
[1743653884902,1.033552,83371.0,83370.0,3.5e-07]
[1743653889215,1.11275491,83371.0,83370.0,3.5e-07]
[1743653889415,0.639409,83363.0,83362.0,7.5e-07]
[1743653889594,0.7561646,83363.0,83362.0,5.589e-05]
[1743653889798,0.77163745,83363.0,83362.0,8.9e-07]
[1743653890814,0.72413745,83363.0,83362.0,8.9e-07]
[1743653891607,0.85873745,83363.0,83362.0,8.9e-07]
[1743653893319,1.39008146,83363.0,83362.0,8.9e-07]
[1743653893676,2.46988146,83363.0,83362.0,8.9e-07]
[1743653893882,0.591919,83360.0,83359.0,8.9e-07]
[1743653894079,0.72411497,83360.0,83359.0,0.00013927]
[1743653895280,1.13871497,83360.0,83359.0,0.00013927]
[1743653895634,1.27335497,83360.0,83359.0,0.00013927]
[1743653897687,1.27335497,83360.0,83359.0,0.00013838]
[1743653900087,1.13871497,83360.0,83359.0,0.00013838]
[1743653900291,1.27335497,83360.0,83359.0,0.00013838]
[1743653901553,1.13871497,83360.0,83359.0,0.00013838]
[1743653901755,1.27335497,83360.0,83359.0,0.00013838]
[1743653902011,1.27335497,83360.0,83359.0,0.00030708]
[1743653904786,1.27365007,83360.0,83359.0,0.00030708]
[1743653912565,1.32095007,83360.0,83359.0,0.00030708]
[1743653913347,1.32128707,83360.0,83359.0,0.00030708]
[1743653913966,1.27398707,83360.0,83359.0,0.00030708]
[1743653918514,1.27394707,83360.0,83359.0,0.00030708]
[1743653921586,1.13934707,83360.0,83359.0,0.00030708]
[1743653921742,1.27394707,83360.0,83359.0,0.00030708]
[1743653922604,2.35374707,83360.0,83359.0,0.00030708]
[1743653924806,1.93914707,83360.0,83359.0,0.00030708]
[1743653927725,1.93914707,83360.0,83359.0,0.0078059]
[1743653932023,0.85934707,83360.0,83359.0,0.0078059]
[1743653932983,0.85934707,83360.0,83359.0,0.00030708]
[1743653933360,0.90554707,83360.0,83359.0,0.00030708]
[1743653936853,0.85934707,83360.0,83359.0,0.00030708]
[1743653947786,0.85930707,83360.0,83359.0,0.00030708]
[1743653949101,1.32300707,83360.0,83359.0,0.00030708]
[1743653956111,2.40276707,83360.0,83359.0,0.00030708]
[1743653962531,2.51951108,83360.0,83359.0,0.00030708]
[1743653963169,2.40276707,83360.0,83359.0,0.00030708]
[1743653967347,2.21910707,83360.0,83359.0,0.00030708]
[1743653967565,2.35366707,83360.0,83359.0,0.00030708]
[1743653968612,2.21910707,83360.0,83359.0,0.00030708]
[1743653968818,1.80450707,83360.0,83359.0,0.00030708]
[1743653969016,1.93906707,83360.0,83359.0,0.00030708]
[1743653972035,1.80450707,83360.0,83359.0,0.00030708]
[1743653972240,1.93906707,83360.0,83359.0,0.00030708]
[1743653980045,0.85930707,83360.0,83359.0,0.00030708]
[1743653981410,0.72474707,83360.0,83359.0,0.00030708]
[1743653983281,0.85930707,83360.0,83359.0,0.00030708]
[1743653984968,0.90530707,83360.0,83359.0,0.00030708]
[1743653985166,0.93700998,83360.0,83359.0,0.00030708]
[1743653986122,0.90530707,83360.0,83359.0,0.00030708]
[1743653986623,0.85930707,83360.0,83359.0,0.00030708]
[1743653994332,0.72474707,83360.0,83359.0,0.00030708]
[1743653994516,1.93910707,83360.0,83359.0,0.00030708]
[1743654010790,1.80454707,83360.0,83359.0,0.00030708]
[1743654010998,1.93906707,83360.0,83359.0,0.00030708]
[1743654013785,0.85926707,83360.0,83359.0,0.00030708]
[1743654015518,0.60799147,83360.0,83359.0,0.00030708]
[1743654015720,0.74251147,83360.0,83359.0,0.00030708]
[1743654016231,0.74251147,83360.0,83359.0,0.0040563]
[1743654016787,0.74251147,83360.0,83359.0,0.0115546]
[1743654017819,0.85926707,83360.0,83359.0,0.0115546]
[1743654019610,0.85926707,83360.0,83359.0,0.02355188]
[1743654022280,0.72474707,83360.0,83359.0,0.02355188]
[1743654023957,0.72474707,83360.0,83359.0,0.0115546]
[1743654024789,0.72474707,83360.0,83359.0,0.00780538]
[1743654025301,0.77254707,83360.0,83359.0,0.00780538]
[1743654025459,0.77254707,83360.0,83359.0,0.00030708]
[1743654031622,0.78108844,83360.0,83359.0,0.00030708]
[1743654034532,1.19568844,83360.0,83359.0,0.00030708]
[1743654036653,1.31243245,83360.0,83359.0,8e-08]
[1743654040754,1.44695245,83360.0,83359.0,8e-08]
[1743654047539,1.33020844,83360.0,83359.0,8e-08]
[1743654047774,1.19568844,83360.0,83359.0,8e-08]
[1743654047920,1.28240844,83360.0,83359.0,8e-08]
[1743654049484,1.32780844,83360.0,83359.0,8e-08]
[1743654052024,2.40764844,83360.0,83359.0,8e-08]
[1743654052387,2.52439245,83360.0,83359.0,8e-08]
[1743654062150,2.40764844,83360.0,83359.0,8e-08]
[1743654074163,2.39220807,83360.0,83359.0,8e-08]
[1743654074381,2.4075174,83360.0,83359.0,8e-08]
[1743654079260,2.4075174,83360.0,83347.0,5.8e-07]
[1743654079261,0.251954,83348.0,83347.0,5.8e-07]
[1743654079421,1.17155765,83348.0,83347.0,5.8e-07]
[1743654079626,1.18072106,83348.0,83347.0,5.8e-07]
[1743654080968,2.26064106,83348.0,83347.0,5.8e-07]
[1743654081894,2.21304106,83348.0,83347.0,5.8e-07]
[1743654085739,2.23656309,83348.0,83347.0,5.8e-07]
[1743654092231,2.22739968,83348.0,83347.0,5.8e-07]
[1743654092347,2.02187968,83348.0,83347.0,0.09870058]
[1743654093027,2.36187968,83348.0,83347.0,0.09870058]
[1743654094046,2.36187968,83348.0,83347.0,0.04890058]
[1743654094282,2.36187968,83348.0,83347.0,0.05639999]
[1743654095404,2.36187968,83348.0,83347.0,0.04890058]
[1743654095774,1.94727968,83348.0,83347.0,0.04890058]
[1743654101137,1.69532568,83348.0,83347.0,0.04890058]
[1743654101350,1.70732268,83348.0,83347.0,0.04890058]
[1743654102117,1.70732268,83348.0,83347.0,0.05265021]
[1743654102389,1.70732268,83348.0,83347.0,0.06014946]
[1743654105518,1.70732268,83348.0,83347.0,0.05639983]
[1743654106115,1.70732268,83348.0,83347.0,0.00749983]
[1743654106277,1.70732268,83348.0,83347.0,5.8e-07]
[1743654109764,0.62740268,83348.0,83347.0,5.8e-07]
[1743654114495,0.62740268,83348.0,83347.0,0.00749983]
[1743654120101,0.62740268,83348.0,83347.0,0.01124945]
[1743654126584,0.67410268,83348.0,83347.0,0.01124945]
[1743654126929,0.67410268,83348.0,83347.0,0.0037502]
[1743654128175,0.67410268,83348.0,83347.0,5.8e-07]
[1743654130015,0.72160268,83348.0,83347.0,5.8e-07]
[1743654133949,1.13620268,83348.0,83347.0,5.8e-07]
[1743654136008,1.08870268,83348.0,83347.0,5.8e-07]
[1743654136209,1.04200268,83348.0,83347.0,5.8e-07]
[1743654136560,1.04196268,83348.0,83347.0,5.8e-07]
[1743654136707,0.90752268,83348.0,83347.0,5.8e-07]
[1743654136891,1.04196268,83348.0,83347.0,5.8e-07]
[1743654139703,0.62736268,83348.0,83347.0,5.8e-07]
[1743654141226,0.49292268,83348.0,83347.0,5.8e-07]
[1743654141437,0.62732268,83348.0,83347.0,5.8e-07]
[1743654146590,0.48092568,83348.0,83347.0,0.23996058]
[1743654146801,0.48092568,83348.0,83347.0,5.8e-07]
[1743654147226,0.48092568,83348.0,83347.0,0.01124939]
[1743654147431,0.49292268,83348.0,83347.0,0.01124939]
[1743654154335,0.53802268,83348.0,83347.0,0.01124939]
[1743654155182,0.53802268,83348.0,83347.0,0.00375018]
[1743654155802,0.53802268,83348.0,83347.0,5.8e-07]
[1743654163245,0.95262268,83348.0,83347.0,5.8e-07]
[1743654164191,0.99892268,83348.0,83347.0,5.8e-07]
[1743654164629,1.03033713,83348.0,83347.0,5.8e-07]
[1743654165763,0.99892268,83348.0,83347.0,5.8e-07]
[1743654167226,0.99892268,83348.0,83340.0,8e-08]
[1743654167227,0.591975,83341.0,83340.0,8e-08]
[1743654167428,0.8026306,83341.0,83340.0,8e-08]
[1743654167649,0.82662227,83341.0,83340.0,8e-08]
[1743654167899,0.82162227,83341.0,83340.0,8e-08]
[1743654170478,1.23622227,83341.0,83340.0,8e-08]
[1743654170716,1.37062227,83341.0,83340.0,8e-08]
[1743654170890,0.93672227,83341.0,83340.0,8e-08]
[1743654171910,1.27672227,83341.0,83340.0,8e-08]
[1743654173850,1.44076628,83341.0,83340.0,8e-08]
[1743654175373,1.32402227,83341.0,83340.0,8e-08]
[1743654180627,1.36992227,83341.0,83340.0,8e-08]
[1743654181249,1.40133672,83341.0,83340.0,8e-08]
[1743654181651,1.36992227,83341.0,83340.0,8e-08]
[1743654182214,1.36992227,83341.0,83340.0,5.8e-07]
[1743654185963,1.23552227,83341.0,83340.0,5.8e-07]
[1743654186142,1.36992227,83341.0,83340.0,5.8e-07]
[1743654186517,1.51808073,83341.0,83340.0,5.8e-07]
[1743654186758,1.54978364,83341.0,83340.0,5.8e-07]
[1743654190380,1.55478364,83341.0,83340.0,5.8e-07]
[1743654194249,0.63617449,83323.0,83322.0,6e-07]
[1743654194431,1.30037429,83323.0,83322.0,6e-07]
[1743654194634,1.32417763,83323.0,83322.0,6e-07]
[1743654195573,1.44092164,83323.0,83322.0,6e-07]
[1743654195979,1.44989127,83323.0,83322.0,6e-07]
[1743654196397,1.33314726,83323.0,83322.0,6e-07]
[1743654196764,2.41338726,83323.0,83322.0,6e-07]
[1743654200629,2.41338726,83323.0,83311.0,1e-06]
[1743654200630,0.592064,83312.0,83311.0,1e-06]
[1743654200805,0.7088196,83312.0,83311.0,1e-06]
[1743654200967,0.70927153,83312.0,83311.0,1e-06]
[1743654201184,0.78244447,83312.0,83311.0,1e-06]
[1743654201390,0.91684447,83312.0,83311.0,1e-06]
[1743654202021,0.91694916,83312.0,83311.0,1e-06]
[1743654202308,0.84377622,83312.0,83311.0,1e-06]
[1743654202723,0.70937622,83312.0,83311.0,1e-06]
[1743654202930,0.84377622,83312.0,83311.0,1e-06]
[1743654203525,0.70937622,83312.0,83311.0,1e-06]
[1743654203751,0.84377622,83312.0,83311.0,1e-06]
[1743654205681,0.86299802,83312.0,83311.0,0.0001695]
[1743654210068,1.27604222,83312.0,83311.0,0.0001695]
[1743654211266,1.39278623,83312.0,83311.0,0.0001695]
[1743654214615,1.27604222,83312.0,83311.0,0.0001695]
[1743654215652,1.14164222,83312.0,83311.0,0.0001695]
[1743654216070,1.27604222,83312.0,83311.0,0.0001695]
[1743654217465,2.35648222,83312.0,83311.0,0.0001695]
[1743654218249,2.35681922,83312.0,83311.0,0.0001695]
[1743654221790,2.35681922,83312.0,83311.0,5e-07]
[1743654221991,2.40591922,83312.0,83311.0,5e-07]
[1743654222280,2.52266323,83312.0,83311.0,5e-07]
[1743654223031,2.40591922,83312.0,83311.0,5e-07]
[1743654224648,0.592118,83294.0,83293.0,0.01125616]
[1743654224844,1.27594865,83294.0,83293.0,0.01125616]
[1743654225044,1.27594865,83294.0,83293.0,0.00375205]
[1743654225716,0.592136,83288.0,83281.0,0.004]
[1743654225904,0.7088916,83288.0,83281.0,0.004]
[1743654226310,1.1219358,83288.0,83287.0,6e-07]
[1743654227094,2.2024558,83288.0,83287.0,6e-07]
[1743654228650,0.00048223,83288.0,83287.0,0.0931006]
[1743654228871,0.03112765,83294.0,83287.0,0.0931006]
[1743654229075,0.11728543,83293.0,83288.0,0.252136]
[1743654229277,0.11728543,83293.0,83289.0,0.059206]
[1743654229669,0.12929043,83293.0,83289.0,0.050952]
[1743654229845,0.36940643,83293.0,83290.0,0.007504]
[1743654230057,0.11728543,83293.0,83290.0,0.007504]
[1743654230439,0.11728543,83293.0,83291.0,0.007504]
[1743654230878,0.11728543,83293.0,83292.0,0.007504]
[1743654231626,0.11728543,83293.0,83292.0,0.116809]
[1743654231627,0.00052983,83293.0,83292.0,0.116809]
[1743654232041,0.00052983,83293.0,83292.0,0.12056092]
[1743654232356,0.00052983,83293.0,83292.0,0.11305692]
[1743654232562,0.00052983,83293.0,83292.0,0.13256594]
[1743654233008,0.352004,83304.0,83297.0,0.240103]
[1743654233208,0.58009,83302.0,83297.0,0.240103]
[1743654233474,0.1167556,83301.0,83295.0,0.252115]
[1743654233671,0.01962077,83300.0,83296.0,0.012005]
[1743654233873,0.34,83298.0,83297.0,0.012005]
[1743654234227,0.4567556,83298.0,83297.0,0.012005]
[1743654234433,0.4567556,83298.0,83297.0,0.01950847]
[1743654234783,0.4567556,83298.0,83297.0,0.00750347]
[1743654235015,0.4567556,83298.0,83297.0,0.02326039]
[1743654235718,0.47587001,83298.0,83297.0,0.02326039]
[1743654236192,0.13587001,83298.0,83297.0,0.06936039]
[1743654236578,0.1167556,83298.0,83297.0,0.08136561]
[1743654237957,0.1167556,83298.0,83297.0,0.06936061]
[1743654238169,0.11725947,83298.0,83297.0,0.06936061]
[1743654239891,0.00050387,83298.0,83297.0,0.08136561]
[1743654240131,0.352004,83304.0,83298.0,0.252106]
[1743654240326,0.34,83302.0,83298.0,0.252106]
[1743654240535,0.00044169,83312.0,83311.0,0.012003]
[1743654240742,0.00044169,83312.0,83311.0,0.109103]
[1743654241692,0.00044169,83312.0,83311.0,0.13836756]
[1743654243105,0.00044169,83312.0,83311.0,0.13236361]
[1743654243887,0.00044169,83312.0,83311.0,0.12035839]
[1743654248385,0.00044169,83312.0,83311.0,0.11660647]
[1743654248964,0.00044169,83312.0,83311.0,0.109103]
[1743654255723,0.00044169,83312.0,83311.0,0.6704586]
[1743654256331,0.00044169,83312.0,83311.0,0.67296207]
[1743654257148,0.00044169,83312.0,83311.0,0.55620647]
[1743654257351,0.00044169,83312.0,83311.0,0.55995839]
[1743654261923,0.00044169,83312.0,83311.0,0.57196361]
[1743654262065,0.00044169,83312.0,83311.0,0.54696361]
[1743654262280,0.00044169,83312.0,83311.0,0.57196361]
[1743654262524,0.00044169,83312.0,83311.0,0.70628361]
[1743654265258,0.251992,83336.0,83330.0,0.012]
[1743654265506,0.13680516,83335.0,83330.0,0.012]
[1743654266072,0.13680516,83335.0,83331.0,0.00750347]
[1743654266514,0.13680516,83335.0,83331.0,0.25950847]
[1743654266712,0.13680516,83335.0,83334.0,0.251997]
[1743654266922,0.02004956,83335.0,83334.0,0.251997]
[1743654267125,0.0476,83339.0,83336.0,0.251989]
[1743654267301,0.02003461,83338.0,83336.0,0.251989]
[1743654267497,0.02003461,83338.0,83334.0,0.25950047]
[1743654268013,0.02003461,83338.0,83335.0,0.00750347]
[1743654268375,0.34,83336.0,83335.0,0.01125539]
[1743654269205,0.34065237,83336.0,83335.0,0.01125539]
[1743654269407,0.01265137,83336.0,83335.0,0.01125539]
[1743654269650,0.12940697,83336.0,83335.0,0.01125539]
[1743654269842,0.12940697,83336.0,83335.0,0.0172554]
[1743654270482,0.12940697,83336.0,83335.0,0.02926062]
[1743654272106,0.11740797,83336.0,83335.0,0.02926062]
[1743654272310,0.34065237,83336.0,83335.0,0.26925562]
[1743654272510,0.34065237,83336.0,83335.0,0.28125462]
[1743654272678,0.00065237,83336.0,83335.0,0.28125462]
[1743654272878,0.000337,83341.0,83338.0,0.239986]
[1743654273086,0.02008366,83340.0,83338.0,0.239986]
[1743654273538,0.02008366,83340.0,83339.0,0.011999]
[1743654273752,0.02008366,83340.0,83339.0,0.03150769]
[1743654273982,0.02008366,83340.0,83339.0,0.04125962]
[1743654275985,0.000337,83341.0,83340.0,0.251979]
[1743654276803,0.000337,83341.0,83340.0,0.27148769]
[1743654277003,0.000337,83341.0,83340.0,0.28123962]
[1743654284128,0.000337,83341.0,83340.0,0.02926062]
[1743654284129,0.4186676,83341.0,83340.0,0.02926062]
[1743654284328,0.4388321,83341.0,83340.0,0.02926062]
[1743654284536,0.1868571,83341.0,83340.0,0.02926062]
[1743654284707,0.1372571,83341.0,83340.0,0.02926062]
[1743654285052,0.0205015,83341.0,83340.0,0.04125962]
[1743654285595,0.000337,83341.0,83340.0,0.04125962]
[1743654291412,0.000337,83341.0,83340.0,0.02926062]
[1743654291585,0.0205015,83341.0,83340.0,0.02926062]
[1743654291823,0.000337,83341.0,83340.0,0.02926062]
[1743654291965,0.0205015,83341.0,83340.0,0.02926062]
[1743654294981,0.0205015,83341.0,83340.0,0.04125962]
[1743654295394,0.000337,83341.0,83340.0,0.02926062]
[1743654295629,0.02053754,83341.0,83340.0,0.02926062]
[1743654295830,0.000337,83341.0,83340.0,0.02926062]
[1743654296034,0.02053754,83341.0,83340.0,0.02926062]
[1743654296232,0.000337,83341.0,83340.0,0.02926062]
[1743654296448,0.02053754,83341.0,83340.0,0.02926062]
[1743654297771,0.02053754,83341.0,83340.0,0.02326061]
[1743654304640,0.03253554,83341.0,83340.0,0.02326061]
[1743654306482,0.03253554,83341.0,83340.0,0.01125539]
[1743654306483,0.14929114,83341.0,83340.0,0.01125539]
[1743654306688,0.19889114,83341.0,83340.0,0.01125539]
[1743654307988,0.54189099,83341.0,83340.0,0.01125539]
[1743654308188,0.53889114,83341.0,83340.0,0.01125539]
[1743654308795,0.53889114,83341.0,83340.0,0.00750347]
[1743654313924,0.36053754,83341.0,83340.0,0.00750347]
[1743654314440,0.37253554,83341.0,83340.0,0.00750347]
[1743654315261,0.37253554,83341.0,83340.0,0.0112534]
[1743654316247,0.37253554,83341.0,83340.0,0.00750347]
[1743654317050,0.48929114,83341.0,83340.0,0.00750347]
[1743654318401,0.53659114,83341.0,83340.0,0.00750347]
[1743654319494,0.58199114,83341.0,83340.0,0.00750347]
[1743654320312,0.011999,83334.0,83327.0,0.10694238]
[1743654320505,0.012,83328.0,83327.0,0.10705867]
[1743654320707,0.03149199,83328.0,83327.0,0.10705867]
[1743654320923,0.01949199,83328.0,83327.0,0.10705867]
[1743654321128,0.012,83331.0,83327.0,0.10705867]
[1743654321300,0.02016492,83330.0,83327.0,0.10705867]
[1743654321510,0.02016492,83330.0,83327.0,0.11455866]
[1743654321674,0.26017492,83330.0,83327.0,0.11455866]
[1743654321878,0.26017492,83330.0,83327.0,0.00761628]
[1743654322767,0.26017492,83330.0,83328.0,0.01949997]
[1743654323329,0.26017492,83330.0,83328.0,0.02324996]
[1743654323648,0.26017492,83330.0,83329.0,0.01949997]
[1743654324460,0.26017492,83330.0,83329.0,0.02324996]
[1743654325857,0.26017492,83330.0,83329.0,0.01124998]
[1743654327260,0.26017492,83330.0,83329.0,0.02324996]
[1743654327631,0.02016492,83330.0,83329.0,0.03524996]
[1743654328089,0.000337,83341.0,83340.0,0.011999]
[1743654328673,0.000337,83341.0,83340.0,0.251979]
[1743654328872,0.000337,83341.0,83340.0,0.27147897]
[1743654329947,0.000337,83341.0,83340.0,0.01949997]
[1743654330060,0.000337,83341.0,83340.0,0.00749999]
[1743654330274,0.02047201,83341.0,83340.0,0.00749999]
[1743654331103,0.02047201,83341.0,83340.0,0.01949899]
[1743654331337,0.000337,83341.0,83340.0,0.01949899]
[1743654335935,0.000337,83341.0,83340.0,0.13849899]
[1743654336327,0.000337,83341.0,83340.0,0.17589375]
[1743654337341,0.000337,83341.0,83340.0,0.29264935]
[1743654337734,0.000337,83341.0,83340.0,0.29764935]
[1743654338349,0.000337,83341.0,83340.0,0.30244835]
[1743654338679,0.000337,83341.0,83340.0,0.31151203]
[1743654339267,0.000337,83341.0,83340.0,0.72611203]
[1743654340200,1e-06,83341.0,83340.0,0.72611203]
[1743654340706,1e-06,83341.0,83340.0,1.06611203]
[1743654341162,1e-06,83348.0,83347.0,0.711758]
[1743654341371,1e-06,83348.0,83347.0,1.41474836]
[1743654341565,1e-06,83348.0,83347.0,1.42224835]
[1743654342767,0.000337,83360.0,83358.0,0.371724]
[1743654342909,0.000337,83360.0,83358.0,0.4884796]
[1743654343818,0.000337,83360.0,83358.0,0.49597959]
[1743654345078,0.000337,83360.0,83358.0,0.91057959]
[1743654345299,0.00038314,83359.0,83358.0,0.91057959]
[1743654347644,0.00038314,83359.0,83358.0,1.25057959]
[1743654349761,0.00038314,83359.0,83358.0,1.35781894]
[1743654350453,5.4e-07,83371.0,83368.0,0.005]
[1743654350654,5.4e-07,83371.0,83370.0,0.281888]
[1743654350856,4.665e-05,83371.0,83370.0,0.4943436]
[1743654351359,4.665e-05,83371.0,83370.0,0.52184359]
[1743654353728,4.665e-05,83371.0,83370.0,0.93644359]
[1743654354315,4.665e-05,83371.0,83370.0,0.945231]
[1743654355075,6.5e-07,83371.0,83370.0,1.411531]
[1743654357590,6.5e-07,83371.0,83370.0,1.419391]
[1743654361816,0.0003372,83382.0,83381.0,0.281855]
[1743654362028,0.0003833,83382.0,83381.0,0.3986106]
[1743654362216,0.0003833,83382.0,83381.0,0.40611059]
[1743654362419,0.0003833,83382.0,83381.0,0.53523059]
[1743654362717,0.0003833,83382.0,83381.0,0.80807499]
[1743654362925,0.0453833,83382.0,83381.0,0.43409299]
[1743654363130,0.0003833,83382.0,83381.0,0.43409299]
[1743654366020,0.0003833,83382.0,83381.0,0.55084859]
[1743654366375,0.0003833,83382.0,83381.0,0.57584859]
[1743654366782,0.0003833,83382.0,83381.0,0.58064559]
[1743654367325,0.0003833,83382.0,83381.0,0.58564559]
[1743654367555,3e-07,83382.0,83381.0,0.58564559]
[1743654368046,3e-07,83382.0,83381.0,0.59779223]
[1743654368352,3e-07,83382.0,83381.0,0.59279223]
[1743654368552,0.0003373,83382.0,83381.0,0.70191223]